fUST/lending_fUST_20250404
["ID","MTS","AMOUNT","RATE_DAILY","PERIOD"]
[357117849,1743755437921,-583.85,0.00019726,2]
[357117851,1743755437932,-548.73239944,0.00019726,2]
[357117853,1743755437941,-942.56,0.00019726,2]
[357117854,1743755437951,-459.19996,0.00019726,2]
[357117855,1743755437961,-459.19996,0.00019726,2]
[357117856,1743755437970,-3872.83457307,0.00019728,2]
[357117857,1743755437979,-1152.0,0.00019756,2]
[357117858,1743755437989,-151.0,0.0001976,2]
[357117859,1743755438001,-187.5,0.0001976,2]
[357117860,1743755438010,-1515.09860617,0.0001998,2]
[357117861,1743755438020,-550.38,0.00019999,2]
[357117862,1743755438029,-325.14551611,0.0002,2]
[357117863,1743755438039,-299.93617855,0.0002,2]
[357117864,1743755438049,-691.72523178,0.0002,2]
[357117865,1743755438059,-1528.42944345,0.0002,2]
[357117866,1743755438068,-583.88519091,0.0002,2]
[357117867,1743755438078,-942.67414295,0.0002,2]
[357117869,1743755438088,-151.0,0.00020072,2]
[357117870,1743755438098,-550.39648789,0.00020273,2]
[357117871,1743755438107,-1000.0,0.00020339,2]
[357117872,1743755438116,-2213.609,0.00020347,2]
[357117873,1743755438128,-500.0,0.00020475,2]
[357117874,1743755438137,-501.4549313,0.00020475,2]
[357117876,1743755438147,-500.0,0.00020475,2]
[357117877,1743755438157,-500.0,0.00020475,2]
[357117878,1743755438167,-200.0,0.00020528,2]
[357117879,1743755438177,-406.800956,0.00020548,2]
[357117880,1743755438187,-500.0,0.00020669,2]
[357117881,1743755438197,-3872.83457307,0.00020693,2]
[357117882,1743755438206,-800.0,0.00020809,2]
[357117883,1743755438216,-1000.0,0.00020834,2]
[357117884,1743755438226,-1000.0,0.00020834,2]
[357117885,1743755438235,-1000.0,0.00020834,2]
[357117886,1743755438245,-1000.0,0.00020834,2]
[357117887,1743755438255,-1000.0,0.00020834,2]
[357117888,1743755438265,-1000.0,0.00020834,2]
[357117889,1743755438275,-500.0,0.00020932,2]
[357117890,1743755438284,-500.0,0.00020932,2]
[357117891,1743755438295,-500.0,0.00020932,2]
[357117892,1743755438305,-500.0,0.00020932,2]
[357117893,1743755438314,-500.0,0.00020932,2]
[357117894,1743755438324,-204.554846,0.00020932,2]
[357117895,1743755438333,-152.215,0.00021,2]
[357117898,1743755438343,-152.24,0.00021,2]
[357117901,1743755438353,-1000.0,0.00021028,2]
[357117902,1743755438362,-500.0,0.00021133,2]
[357117903,1743755438373,-500.0,0.00021133,2]
[357117904,1743755438383,-500.0,0.00021133,2]
[357117905,1743755438393,-1000.0,0.00021153,2]
[357117906,1743755438403,-875.81593026,0.00021157,2]
[357117907,1743755438413,-1000.0,0.00021157,2]
[357117908,1743755438423,-1388.34485085,0.00021331,2]
[357117909,1743755438433,-388.1829343,0.00021339,2]
[357117910,1743755438442,-800.0,0.00021344,2]
[357117911,1743755438452,-503.10763081,0.00021422,2]
[357117912,1743755438462,-500.0,0.00021471,2]
[357117913,1743755438471,-500.0,0.00021471,2]
[357117914,1743755438480,-500.0,0.00021471,2]
[357117915,1743755438490,-501.4810687,0.00021471,2]
[357117916,1743755438499,-500.0,0.00021471,2]
[357117917,1743755438509,-512.85051792,0.00021471,2]
[357117918,1743755438518,-500.0,0.00021471,2]
[357117919,1743755438528,-500.0,0.00021471,2]
[357117920,1743755438537,-500.0,0.00021471,2]
[357117921,1743755438547,-500.0,0.00021471,2]
[357117922,1743755438556,-400.15665531,0.00021471,2]
[357117923,1743755438566,-168.054552,0.00021526,2]
[357117924,1743755438575,-217.0831792,0.00021534,2]
[357117925,1743755438584,-1957.38979801,0.0002165,3]
[357117926,1743755438594,-13793.36214503,0.0002165,3]
[357117927,1743755438603,-292.0,0.0002165,2]
[357117928,1743755438612,-3872.83457307,0.00021659,3]
[357117929,1743755438623,-459.19996,0.0002176,2]
[357117930,1743755438633,-459.19996,0.0002176,2]
[357117931,1743755438643,-369.4764848,0.0002176,2]
[357117932,1743755438652,-499.7638309,0.0002176,2]
[357117933,1743755438662,-359.5753439,0.0002176,2]
[357117935,1743755438671,-359.5753439,0.0002176,2]
[357117936,1743755438680,-359.5753439,0.0002176,2]
[357117937,1743755438689,-359.5753439,0.0002176,2]
[357117938,1743755438698,-359.5753439,0.0002176,2]
[357117939,1743755438708,-684.8775165,0.0002176,2]
[357117940,1743755438717,-800.0,0.00021767,2]
[357117941,1743755438726,-153.0,0.00021918,2]
[357117942,1743755438735,-153.0,0.00021918,2]
[357117943,1743755438744,-153.0,0.00021918,2]
[357117944,1743755438754,-153.0,0.00021918,2]
[357117945,1743755438763,-153.0,0.00021918,2]
[357117946,1743755438773,-153.0,0.00021918,2]
[357117947,1743755438782,-153.0,0.00021918,2]
[357117948,1743755438791,-153.0,0.00021918,2]
[357117949,1743755438802,-153.0,0.00021918,2]
[357117950,1743755438811,-153.0,0.00021918,2]
[357117951,1743755438820,-153.0,0.00021918,2]
[357117952,1743755438830,-153.0,0.00021918,2]
[357117953,1743755438839,-153.0,0.00021918,2]
[357117954,1743755438849,-153.0,0.00021918,2]
[357117955,1743755438858,-153.0,0.00021918,2]
[357117956,1743755438868,-153.0,0.00021918,2]
[357117957,1743755438878,-153.0,0.00021918,2]
[357117958,1743755438888,-153.0,0.00021918,2]
[357117959,1743755438897,-153.0,0.00021918,2]
[357117960,1743755438907,-153.0,0.00021918,2]
[357117961,1743755438919,-153.0,0.00021918,2]
[357117962,1743755438928,-153.0,0.00021918,2]
[357117963,1743755438938,-153.0,0.00021918,2]
[357117964,1743755438948,-153.0,0.00021918,2]
[357117965,1743755438959,-153.0,0.00021918,2]
[357117966,1743755438969,-153.0,0.00021918,2]
[357117967,1743755438978,-153.0,0.00021918,2]
[357117968,1743755438988,-153.0,0.00021918,2]
[357117969,1743755438999,-153.0,0.00021918,2]
[357117970,1743755439009,-153.0,0.00021918,2]
[357117971,1743755439020,-153.0,0.00021918,2]
[357117972,1743755439029,-153.0,0.00021918,2]
[357117973,1743755439038,-153.0,0.00021918,2]
[357117974,1743755439047,-153.0,0.00021918,2]
[357117975,1743755439057,-151.0,0.00021918,7]
[357117976,1743755439066,-500.0,0.00021973,2]
[357117977,1743755439075,-504.80763311,0.00021973,2]
[357117978,1743755439085,-500.0,0.00021973,2]
[357117979,1743755439097,-500.0,0.00021973,2]
[357117980,1743755439106,-500.0,0.00021973,2]
[357117981,1743755439115,-615.71153032,0.00021973,2]
[357117982,1743755439125,-500.0,0.00021973,2]
[357117983,1743755439135,-500.0,0.00021973,2]
[357117984,1743755439144,-151.0,0.00021973,7]
[357117985,1743755439153,-459.19996,0.0002199,2]
[357117986,1743755439163,-459.19996,0.0002199,2]
[357117987,1743755439172,-61337.5616633,0.0002199,2]
[357117988,1743755439181,-514339.71942691,0.00022,14]
[357117989,1743755439191,-16496.41,0.00022,14]
[357117990,1743755439200,-899.0,0.00022,2]
[357117991,1743755439209,-836.20464454,0.00022,2]
[357117992,1743755439219,-7358.76,0.00022,14]
[357117993,1743755439228,-2525.53,0.00022,2]
[357117994,1743755439237,-151.0,0.00022,7]
[357117995,1743755439246,-7791.46,0.00022,14]
[357117996,1743755439256,-300.0,0.00022,2]
[357117997,1743755439265,-1000.0,0.00022,2]
[357117998,1743755439275,-459.19996,0.00022,2]
[357117999,1743755439284,-459.19996,0.00022,2]
[357118000,1743755439294,-800.0,0.00022034,2]
[357118001,1743755439414,-1170.83,0.00022064,2]
[357118002,1743755439424,-800.0,0.0002211,2]
[357118003,1743755439436,-156.44957525,0.00022245,2]
[357118004,1743755439446,-151.0,0.0002225,7]
[357118005,1743755439455,-800.0,0.00022252,2]
[357118006,1743755439465,-1170.83,0.00022338,2]
[357118007,1743755439475,-153.04710793,0.00022485,5]
[357118008,1743755439484,-200.48860388,0.00022485,5]
[357118009,1743755439494,-200.4055275,0.00022485,5]
[357118010,1743755439503,-500.0,0.00022485,5]
[357118011,1743755439513,-161.09904262,0.00022485,5]
[357118012,1743755439523,-200.84366802,0.00022485,5]
[357118013,1743755439532,-155.42000001,0.00022485,5]
[357118014,1743755439542,-500.0,0.00022485,5]
[357118015,1743755439552,-151.15932509,0.00022485,5]
[357118016,1743755439562,-500.0,0.00022485,5]
[357118017,1743755439572,-214.31769624,0.00022485,5]
[357118018,1743755439582,-248.97275682,0.00022485,5]
[357118019,1743755439591,-500.0,0.00022485,5]
[357118020,1743755439601,-166.63121456,0.00022485,5]
[357118021,1743755439611,-919.19731103,0.00022485,5]
[357118023,1743755439621,-459.19996,0.00022485,2]
[357118024,1743755439631,-459.19996,0.00022485,2]
[357118025,1743755439640,-200.0,0.000225,2]
[357118026,1743755439649,-160.0,0.00022503,3]
[357118027,1743755439659,-898.54735088,0.00022512,5]
[357118028,1743755439669,-500.0,0.00022512,5]
[357118030,1743755439678,-500.0,0.00022512,5]
[357118032,1743755439687,-500.0,0.00022512,5]
[357118033,1743755439698,-500.0,0.0002254,5]
[357118034,1743755439707,-500.0,0.0002254,5]
[357118035,1743755439717,-500.0,0.0002254,5]
[357118036,1743755439726,-500.0,0.00022567,5]
[357118037,1743755439736,-630.86397442,0.00022567,5]
[357118038,1743755439745,-500.0,0.00022567,5]
[357118039,1743755439757,-500.0,0.00022595,5]
[357118040,1743755439767,-500.0,0.00022595,5]
[357118041,1743755439776,-544.48713393,0.00022602,2]
[357118042,1743755439785,-1170.83,0.00022612,2]
[357118043,1743755439794,-500.0,0.00022622,5]
[357118044,1743755439804,-500.0,0.00022622,5]
[357118045,1743755439813,-3872.83457307,0.00022624,4]
[357118046,1743755439823,-500.0,0.00022649,5]
[357118047,1743755439832,-500.0,0.00022649,5]
[357118048,1743755439843,-500.0,0.00022677,5]
[357118049,1743755439853,-500.0,0.00022677,5]
[357118050,1743755439863,-1170.83,0.00022886,2]
[357118051,1743755439873,-800.0,0.00022905,2]
[357118052,1743755439883,-500.0,0.00022981,2]
[357118053,1743755439893,-2000.0,0.00023,14]
[357118054,1743755439904,-7757.0,0.00023,2]
[357118055,1743755439914,-282.0,0.00023,5]
[357118056,1743755439926,-500.0,0.00023,3]
[357118057,1743755439935,-500.0,0.00023,3]
[357118058,1743755439947,-500.0,0.00023,3]
[357118059,1743755439957,-500.0,0.00023,3]
[357118060,1743755439966,-500.0,0.00023,2]
[357118061,1743755439978,-500.0,0.00023,3]
[357118062,1743755439988,-500.0,0.00023,3]
[357118063,1743755440000,-500.0,0.00023,3]
[357118064,1743755440011,-151.0,0.00023,7]
[357118065,1743755440021,-160.0,0.00023,3]
[357118066,1743755440031,-500.0,0.0002302,2]
[357118067,1743755440040,-500.0,0.00023024,2]
[357118068,1743755440051,-500.0,0.00023083,2]
[357118069,1743755440061,-600.0,0.00023111,2]
[357118070,1743755440071,-1170.83,0.0002316,2]
[357118071,1743755440080,-500.0,0.00023165,2]
[357118072,1743755440089,-1300.0,0.00023188,2]
[357118073,1743755440099,-7358.76,0.000232,14]
[357118074,1743755440108,-152.24,0.000232,2]
[357118075,1743755440117,-500.0,0.00023201,2]
[357118076,1743755440127,-459.19996,0.00023201,2]
[357118077,1743755440137,-459.19996,0.00023201,2]
[357118078,1743755440146,-600.0,0.00023226,2]
[357118080,1743755440155,-185.8554966,0.00023231,2]
[357118082,1743755440164,-500.0,0.00023234,2]
[357118083,1743755440173,-500.0,0.00023256,2]
[357118084,1743755440182,-500.0,0.00023298,2]
[357118085,1743755440191,-7791.46,0.000233,14]
[357118086,1743755440201,-500.0,0.00023312,2]
[357118087,1743755440210,-500.0,0.00023324,2]
[357118088,1743755440220,-613.41762937,0.00023333,3]
[357118089,1743755440229,-151.0,0.00023337,7]
[357118090,1743755440239,-500.0,0.00023361,2]
[357118091,1743755440248,-600.0,0.00023374,2]
[357118092,1743755440258,-500.0,0.00023374,2]
[357118093,1743755440267,-631.0,0.000234,2]
[357118094,1743755440277,-1300.0,0.00023404,2]
[357118095,1743755440286,-600.0,0.00023409,2]
[357118096,1743755440295,-600.0,0.00023414,2]
[357118097,1743755440305,-1300.0,0.00023415,2]
[357118098,1743755440314,-500.0,0.00023416,2]
[357118100,1743755440323,-600.0,0.0002342,2]
[357118102,1743755440332,-1170.83,0.00023434,2]
[357118104,1743755440342,-500.0,0.00023442,2]
[357118105,1743755440351,-500.0,0.00023445,2]
[357118106,1743755440360,-500.0,0.00023449,2]
[357118107,1743755440371,-500.0,0.00023466,2]
[357118108,1743755440381,-1300.0,0.00023468,2]
[357118109,1743755440391,-500.0,0.00023487,2]
[357118110,1743755440401,-2000.0,0.000235,2]
[357118111,1743755440411,-488.0,0.000235,5]
[357118112,1743755440420,-15662.63,0.000235,5]
[357118113,1743755440429,-160.0,0.000235,4]
[357118114,1743755440438,-162.0532939,0.000235,5]
[357118115,1743755440448,-500.0,0.00023505,2]
[357118116,1743755440457,-187.79650868,0.00023507,2]
[357118117,1743755440467,-800.0,0.00023525,2]
[357118118,1743755440476,-600.0,0.00023528,2]
[357118119,1743755440486,-500.0,0.00023542,2]
[357118120,1743755440495,-600.0,0.00023544,2]
[357118121,1743755440505,-241.0686413,0.00023546,5]
[357118122,1743755440515,-3872.83457307,0.0002359,4]
[357118124,1743755440524,-151.0,0.00023594,7]
[357118125,1743755440533,-187.79650868,0.00023616,2]
[357118126,1743755440543,-1300.0,0.00023639,2]
[357118127,1743755440552,-459.19996,0.00023639,2]
[357118129,1743755440562,-459.19996,0.00023639,2]
[357118131,1743755440573,-500.0,0.00023659,2]
[357118134,1743755440583,-385.03752322,0.00023691,2]
[357118136,1743755440592,-651911.66,0.000237,14]
[357118138,1743755440602,-16496.41,0.000237,14]
[357118140,1743755440612,-151.0,0.000237,7]
[357118141,1743755440622,-459.19996,0.000237,2]
[357118142,1743755440631,-459.19996,0.000237,2]
[357118143,1743755440640,-1170.83,0.00023708,2]
[357118144,1743755440650,-200.0,0.0002371,11]
[357118145,1743755440661,-600.0,0.00023715,2]
[357118146,1743755440670,-500.0,0.00023752,2]
[357118147,1743755440680,-187.79650868,0.00023753,2]
[357118148,1743755440689,-1300.0,0.00023754,2]
[357118149,1743755440698,-500.0,0.00023777,2]
[357118150,1743755440707,-1300.0,0.00023789,2]
[357118151,1743755440716,-500.0,0.00023791,2]
[357118152,1743755440725,-600.0,0.00023795,2]
[357118153,1743755440735,-500.0,0.0002382,2]
[357118154,1743755440744,-800.0,0.00023833,2]
[357118155,1743755440754,-500.0,0.00023833,2]
[357118156,1743755440763,-1300.0,0.00023836,2]
[357118157,1743755440772,-500.0,0.00023836,2]
[357118158,1743755440782,-800.0,0.00023841,2]
[357118159,1743755440791,-187.79650868,0.00023863,2]
[357118160,1743755440800,-1300.0,0.00023873,2]
[357118161,1743755440810,-500.0,0.00023899,2]
[357118162,1743755440819,-1300.0,0.00023906,2]
[357118163,1743755440829,-600.0,0.00023918,2]
[357118164,1743755440838,-600.0,0.00023924,2]
[357118165,1743755440848,-1300.0,0.00023941,2]
[357118166,1743755440857,-1300.0,0.00023971,2]
[357118167,1743755440867,-500.0,0.00023971,2]
[357118168,1743755440878,-187.79650868,0.00023973,2]
[357118169,1743755440888,-800.0,0.00023977,2]
[357118170,1743755440898,-1170.83,0.00023982,2]
[357118171,1743755440907,-800.0,0.00023985,2]
[357118172,1743755440918,-500.0,0.00023995,2]
[357118173,1743755440929,-151.0,0.00024,14]
[357118174,1743755440938,-300.000001,0.00024,2]
[357118175,1743755440948,-1000.0,0.00024,24]
[357118176,1743755440958,-593.0,0.00024,4]
[357118177,1743755440969,-5000.0,0.00024,2]
[357118178,1743755440978,-1670.1893058,0.00024,2]
[357118179,1743755440987,-9151.83382319,0.00024,2]
[357118180,1743755440998,-51302.89446708,0.00024,7]
[357118181,1743755441009,-37537.55519527,0.00024,7]
[357118182,1743755441018,-3709.0,0.00024,7]
[357118183,1743755441028,-44431.51875011,0.00024,2]
[357118184,1743755441137,-928.14550992,0.00024,2]
[357118185,1743755441149,-422.505,0.00024,2]
[357118189,1743755445063,-507.92683116,0.00013698,2]
[357118190,1743755445073,-500.0,0.00013698,2]
[357118191,1743755445083,-500.0,0.00013698,2]
[357118192,1743755445093,-500.0,0.00013698,2]
[357118193,1743755445103,-500.0,0.00013698,2]
[357118194,1743755445113,-500.0,0.00013698,2]
[357118195,1743755445123,-500.0,0.00013971,2]
[357118196,1743755445134,-500.0,0.00013972,2]
[357118197,1743755445144,-500.0,0.00013972,2]
[357118198,1743755445153,-500.0,0.00013972,2]
[357118199,1743755445163,-500.0,0.00014245,2]
[357118200,1743755445172,-500.0,0.00014246,2]
[357118201,1743755445182,-570.98,0.00014246,2]
[357118202,1743755445192,-567.82598466,0.00014246,2]
[357118203,1743755445203,-562.96122168,0.00014519,2]
[357118204,1743755445212,-500.0,0.0001452,2]
[357118205,1743755445222,-500.0,0.00014793,2]
[357118206,1743755445232,-500.0,0.00014793,2]
[357118207,1743755445241,-507.67535005,0.00014793,2]
[357118208,1743755445250,-500.0,0.00014793,2]
[357118209,1743755445260,-500.0,0.00014793,2]
[357118210,1743755445269,-500.0,0.00014793,2]
[357118211,1743755445279,-218.29400263,0.00014793,2]
[357118212,1743755445288,-9669.50249351,0.00024,2]
[357118213,1743755445297,-154.0,0.00024,2]
[357118214,1743755445308,-459.19996,0.00024,2]
[357118215,1743755445317,-459.199958,0.00024,2]
[357118216,1743755445327,-1300.0,0.00024063,2]
[357118217,1743755445337,-600.0,0.00024063,2]
[357118218,1743755445348,-500.0,0.00024065,2]
[357118219,1743755445358,-500.0,0.00024066,2]
[357118220,1743755445368,-1300.0,0.00024068,2]
[357118221,1743755445380,-187.79650868,0.00024082,2]
[357118222,1743755445390,-939.49,0.00024109,2]
[357118223,1743755445400,-939.49,0.00024109,2]
[357118224,1743755445410,-939.49,0.00024109,2]
[357118225,1743755445420,-939.49,0.00024109,2]
[357118226,1743755445429,-939.49,0.00024109,2]
[357118227,1743755445439,-939.49,0.00024109,2]
[357118228,1743755445449,-939.49,0.00024109,2]
[357118229,1743755445459,-939.49,0.00024109,2]
[357118230,1743755445469,-939.49,0.00024109,2]
[357118231,1743755445479,-939.49,0.00024109,2]
[357118232,1743755445489,-939.49,0.00024109,2]
[357118233,1743755445498,-939.49,0.00024109,2]
[357118234,1743755445508,-939.49,0.00024109,2]
[357118235,1743755445518,-939.49,0.00024109,2]
[357118236,1743755445528,-939.49,0.00024109,2]
[357118237,1743755445537,-939.49,0.00024109,2]
[357118238,1743755445547,-939.49,0.00024109,2]
[357118239,1743755445556,-939.49,0.00024109,2]
[357118240,1743755445566,-939.49,0.00024109,2]
[357118241,1743755445575,-939.49,0.00024109,2]
[357118242,1743755445585,-939.49,0.00024109,2]
[357118243,1743755445595,-939.49,0.00024109,2]
[357118244,1743755445606,-939.49,0.00024109,2]
[357118246,1743755445616,-939.49258289,0.00024109,2]
[357118247,1743755445626,-1300.0,0.00024123,2]
[357118248,1743755445637,-1300.0,0.00024132,2]
[357118249,1743755445647,-500.0,0.00024135,2]
[357118251,1743755445656,-800.0,0.00024146,2]
[357118254,1743755445667,-231.80961673,0.00024166,2]
[357118257,1743755445676,-1300.0,0.00024171,2]
[357118260,1743755445686,-600.0,0.00024175,2]
[357118263,1743755445696,-187.79650868,0.00024192,2]
[357118267,1743755445706,-500.0,0.00024193,2]
[357118270,1743755445716,-600.0,0.000242,2]
[357118273,1743755445726,-800.0,0.00024202,2]
[357118276,1743755445736,-1170.83,0.00024256,2]
[357118279,1743755445745,-5000.0,0.00024269,2]
[357118282,1743755445755,-187.79650868,0.00024301,2]
[357118284,1743755445765,-500.0,0.00024312,2]
[357118286,1743755445776,-1300.0,0.0002432,2]
[357118288,1743755445785,-600.0,0.00024332,2]
[357118289,1743755445795,-500.0,0.00024342,2]
[357118291,1743755445805,-500.0,0.00024367,2]
[357118293,1743755445816,-800.0,0.00024368,2]
[357118296,1743755445825,-800.0,0.00024372,2]
[357118300,1743755445835,-7358.76,0.000244,14]
[357118303,1743755445844,-187.79650868,0.00024411,2]
[357118306,1743755445854,-500.0,0.00024411,2]
[357118309,1743755445864,-1300.0,0.0002442,2]
[357118312,1743755445874,-800.0,0.00024422,2]
[357118315,1743755445884,-1300.0,0.00024424,2]
[357118318,1743755445894,-800.0,0.00024429,2]
[357118321,1743755445904,-500.0,0.00024438,2]
[357118323,1743755445915,-500.0,0.0002447,2]
[357118325,1743755445925,-500.0,0.00024485,2]
[357118327,1743755445936,-1300.0,0.00024498,2]
[357118330,1743755445945,-1430.16571214,0.000245,4]
[357118333,1743755445955,-7791.46,0.000245,14]
[357118335,1743755445966,-1300.0,0.00024503,2]
[357118337,1743755445975,-1300.0,0.00024511,2]
[357118339,1743755445985,-500.0,0.00024518,2]
[357118341,1743755445996,-504.84531182,0.00024522,2]
[357118343,1743755446008,-1300.0,0.00024525,2]
[357118345,1743755446017,-1170.83,0.0002453,2]
[357118347,1743755446028,-600.0,0.0002454,2]
[357118349,1743755446038,-1300.0,0.00024544,2]
[357118352,1743755446049,-187.79650868,0.00024548,2]
[357118354,1743755446058,-600.0,0.00024553,2]
[357118356,1743755446069,-3872.83457307,0.00024555,5]
[357118358,1743755446079,-1300.0,0.00024557,2]
[357118360,1743755446089,-2970.0,0.00024582,2]
[357118363,1743755446099,-500.0,0.00024599,2]
[357118366,1743755446110,-500.0,0.00024604,2]
[357118368,1743755446121,-506.67332775,0.0002462,2]
[357118370,1743755446133,-1300.0,0.00024648,2]
[357118372,1743755446143,-500.0,0.00024657,2]
[357118373,1743755446153,-500.0,0.00024657,2]
[357118375,1743755446162,-500.0,0.00024657,2]
[357118377,1743755446172,-616.2827812,0.00024657,2]
[357118379,1743755446181,-200.0,0.00024657,2]
[357118381,1743755446191,-204.50443954,0.00024657,2]
[357118383,1743755446201,-500.0,0.00024657,2]
[357118385,1743755446211,-500.0,0.00024657,2]
[357118387,1743755446221,-500.0,0.00024657,2]
[357118389,1743755446231,-500.0,0.00024657,2]
[357118391,1743755446241,-500.0,0.00024657,2]
[357118393,1743755446251,-500.0,0.00024657,2]
[357118395,1743755446261,-500.0,0.00024657,2]
[357118397,1743755446271,-597.01951597,0.00024657,2]
[357118399,1743755446282,-187.79650868,0.00024658,2]
[357118403,1743755446293,-974.4119424,0.00024658,4]
[357118412,1743755446390,-380.0,0.00024658,2]
[357118413,1743755446406,-200.0,0.00024658,15]
[357118414,1743755446416,-200.0,0.00024658,2]
[357118415,1743755446426,-295.49,0.0002466,4]
[357118416,1743755446435,-172.37215537,0.0002466,4]
[357118417,1743755446445,-172.37215537,0.0002466,4]
[357118418,1743755446455,-172.37215537,0.0002466,4]
[357118419,1743755446464,-172.37,0.0002466,4]
[357118420,1743755446474,-158.40052839,0.0002466,4]
[357118421,1743755446485,-158.40052839,0.0002466,4]
[357118422,1743755446494,-158.40052839,0.0002466,4]
[357118424,1743755446504,-158.40052839,0.0002466,4]
[357118426,1743755446513,-158.40052839,0.0002466,4]
[357118428,1743755446523,-158.40052839,0.0002466,4]
[357118430,1743755446532,-158.40052839,0.0002466,4]
[357118432,1743755446541,-158.40052839,0.0002466,4]
[357118433,1743755446550,-158.4,0.0002466,4]
[357118434,1743755446560,-166.32055481,0.0002466,4]
[357118435,1743755446570,-166.32055481,0.0002466,4]
[357118436,1743755446579,-166.32055481,0.0002466,4]
[357118437,1743755446588,-166.32055481,0.0002466,4]
[357118438,1743755446597,-166.32055481,0.0002466,4]
[357118439,1743755446607,-166.32055481,0.0002466,4]
[357118440,1743755446616,-166.32055481,0.0002466,4]
[357118441,1743755446627,-166.32055481,0.0002466,4]
[357118442,1743755446637,-166.32055481,0.0002466,4]
[357118443,1743755446646,-166.32055481,0.0002466,4]
[357118444,1743755446656,-166.32055481,0.0002466,4]
[357118445,1743755446665,-166.32055481,0.0002466,4]
[357118446,1743755446675,-166.32055481,0.0002466,4]
[357118447,1743755446684,-166.32055481,0.0002466,4]
[357118448,1743755446694,-166.32055481,0.0002466,4]
[357118449,1743755446703,-166.32055481,0.0002466,4]
[357118450,1743755446712,-166.32055481,0.0002466,4]
[357118451,1743755446722,-166.32055481,0.0002466,4]
[357118452,1743755446732,-166.32055481,0.0002466,4]
[357118453,1743755446741,-166.32,0.0002466,4]
[357118454,1743755446751,-500.0,0.0002471,2]
[357118455,1743755446760,-800.0,0.00024739,2]
[357118456,1743755446769,-500.0,0.00024741,2]
[357118457,1743755446779,-2129.00248583,0.00024743,2]
[357118458,1743755446788,-500.0,0.00024743,2]
[357118459,1743755446797,-500.0,0.00024762,2]
[357118460,1743755446806,-187.79650868,0.00024767,2]
[357118461,1743755446815,-600.0,0.00024772,2]
[357118462,1743755446824,-800.0,0.00024773,2]
[357118463,1743755446834,-600.0,0.00024778,2]
[357118464,1743755446843,-800.0,0.00024787,2]
[357118465,1743755446852,-800.0,0.00024796,2]
[357118466,1743755446862,-1170.83,0.00024804,2]
[357118467,1743755446871,-300.0,0.00024806,2]
[357118468,1743755446881,-1000.0,0.00024806,2]
[357118469,1743755446891,-600.0,0.00024809,2]
[357118470,1743755446900,-610.57263727,0.00024822,2]
[357118471,1743755446910,-800.0,0.00024836,2]
[357118472,1743755446920,-600.0,0.00024851,2]
[357118473,1743755446934,-600.0,0.00024864,2]
[357118474,1743755446944,-151.20429357,0.00024873,2]
[357118475,1743755446954,-800.0,0.00024892,2]
[357118476,1743755446964,-200.0,0.000249,2]
[357118477,1743755446973,-152.99960128,0.000249,2]
[357118478,1743755446982,-390481.52611477,0.000249,2]
[357118479,1743755651586,500.0,0.00024,120]
[357118480,1743755652326,500.0,0.00024,120]